bitfinex-derivatives/quotes_BTCF0:USTF0_20251219
["timestamp","ask_amount","ask_price","bid_price","bid_amount"]
[1766106741343,0.3608,85515.0,85507.0,0.0117012]
[1766106745645,0.14789,85521.0,85509.0,0.3608]
[1766106746939,0.1595894,85521.0,85509.0,0.3608]
[1766106748442,0.0116997,85520.0,85509.0,0.3608]
[1766106748642,0.1595898,85519.0,85509.0,0.3608]
[1766106750346,0.14789,85519.0,85511.0,0.3608]
[1766106751951,0.14789,85519.0,85508.0,0.0117012]
[1766106752152,0.14789,85519.0,85511.0,0.3608]
[1766106758852,0.1595898,85519.0,85511.0,0.3608]
[1766106760051,0.56606836,85524.0,85506.0,0.00017542]
[1766106760052,0.14789,85512.0,85506.0,0.00017542]
[1766106760258,0.14789,85507.0,85506.0,2e-08]
[1766106760561,0.3608,85509.0,85506.0,2e-08]
[1766106764354,0.50914,85509.0,85506.0,2e-08]
[1766106766265,0.3608,85508.0,85506.0,2e-08]
[1766106766661,0.50914,85508.0,85506.0,2e-08]
[1766106770558,0.3608,85508.0,85506.0,2e-08]
[1766106770867,0.14834,85507.0,85506.0,2e-08]
[1766106771061,0.3608,85508.0,85506.0,2e-08]
[1766106772567,0.14834,85507.0,85506.0,2e-08]
[1766106772966,0.14834,85507.0,85495.0,0.3608]
[1766106773158,0.14834,85502.0,85495.0,0.3608]
[1766106773357,0.3608,85499.0,85492.0,0.57656]
[1766106774561,0.14834,85498.0,85492.0,0.57656]
[1766106779472,0.3608,85499.0,85492.0,0.57656]
[1766106781974,0.14834,85502.0,85492.0,0.57656]
[1766106782775,0.14834,85502.0,85493.0,0.0117032]
[1766106784775,0.14834,85502.0,85492.0,0.57656]
[1766106786478,0.0117012,85508.0,85500.0,0.3608]
[1766106786670,0.20543729,85510.0,85500.0,0.3608]
[1766106787374,0.21713819,85510.0,85500.0,0.3608]
[1766106787565,0.0117012,85508.0,85500.0,0.3608]
[1766106787762,0.0117035,85492.0,85480.0,0.3608]
[1766106787969,0.7216,85488.0,85471.0,0.1489]
[1766106788278,0.3608,85488.0,85473.0,0.1489]
[1766106788462,0.3608,85474.0,85473.0,0.1489]
[1766106788874,0.0244942,85487.0,85473.0,0.1489]
[1766106789378,0.01279,85487.0,85474.0,0.0117058]
[1766106789563,0.0244942,85487.0,85473.0,0.1489]
[1766106789876,0.01279,85487.0,85473.0,0.1489]
[1766106790068,0.01279,85487.0,85474.0,0.1489]
[1766106792277,0.3608,85483.0,85474.0,0.1489]
[1766106792476,0.01253,85477.0,85465.0,0.00017542]
[1766106792681,0.3608,85468.0,85465.0,0.13786542]
[1766106793474,0.2808,85468.0,85465.0,0.13786542]
[1766106793677,0.2008,85468.0,85465.0,0.13786542]
[1766106793878,0.0408,85468.0,85465.0,0.13786542]
[1766106794078,0.3608,85476.0,85465.0,0.13786542]
[1766106794579,0.37313,85476.0,85465.0,0.13786542]
[1766106794775,0.01250542,85481.0,85473.0,0.3608]
[1766106802696,0.00017542,85481.0,85473.0,0.3608]
[1766106802995,0.00017542,85481.0,85474.0,0.0117058]
[1766106803894,0.00017542,85481.0,85473.0,0.3608]
[1766106806082,0.011705,85480.0,85473.0,0.3608]
[1766106806498,0.00017542,85481.0,85473.0,0.3608]
[1766106811393,0.00017542,85481.0,85467.0,0.0001076]
[1766106811394,0.01437,85477.0,85467.0,0.0001076]
[1766106811600,0.3608,85478.0,85467.0,0.0001076]
[1766106811601,0.3608,85468.0,85467.0,0.0001076]
[1766106811899,0.0117068,85467.0,85454.0,0.3608]
[1766106812098,0.0058,85468.0,85454.0,0.3725085]
[1766106812786,8.483e-05,85467.0,85454.0,0.36097542]
[1766106813897,8.483e-05,85467.0,85457.0,0.13769]
[1766106814097,8.483e-05,85467.0,85458.0,0.01404834]
[1766106815300,8.483e-05,85467.0,85458.0,0.00234034]
[1766106815901,8.483e-05,85467.0,85458.0,0.14003034]
[1766106816404,8.483e-05,85467.0,85461.0,0.0117076]
[1766106816604,3e-08,85468.0,85462.0,0.13769]
[1766106829708,3e-08,85468.0,85458.0,0.00234034]
[1766106829709,0.0117068,85467.0,85458.0,0.00234034]
[1766106830110,0.0117084,85456.0,85454.0,0.00017542]
[1766106830409,0.0117089,85452.0,85442.0,0.14827]
[1766106831999,0.49648,85455.0,85442.0,0.14827]
[1766106832000,0.0117086,85454.0,85442.0,0.14827]
[1766106833501,0.1473889,85452.0,85438.0,0.14838732]
[1766106833705,0.0117092,85450.0,85438.0,0.14838732]
[1766106833910,0.3608,85445.0,85438.0,0.14838732]
[1766106834107,0.2808,85445.0,85438.0,0.14838732]
[1766106834309,0.01171,85444.0,85438.0,0.00011732]
[1766106834508,0.2008,85445.0,85438.0,0.00011732]
[1766106834714,0.0117103,85442.0,85438.0,2e-08]
[1766106835302,0.33648,85445.0,85438.0,2e-08]
[1766106835806,0.0117102,85443.0,85438.0,2e-08]
[1766106836006,0.33648,85445.0,85438.0,2e-08]
[1766106837209,0.0117104,85441.0,85438.0,2e-08]
[1766106837805,0.1473904,85441.0,85438.0,2e-08]
[1766106838210,0.0117104,85441.0,85438.0,2e-08]
[1766106839210,0.0117109,85438.0,85425.0,0.14827]
[1766106839414,0.0117109,85438.0,85415.0,2.45932]
[1766106839415,0.13568,85427.0,85415.0,0.14827]
[1766106839613,0.13568,85418.0,85397.0,0.0117164]
[1766106839811,0.3608,85401.0,85397.0,0.0117163]
[1766106840008,0.3608,85411.0,85398.0,0.3608]
[1766106840409,0.20554411,85410.0,85398.0,0.3608]
[1766106840615,0.3608,85404.0,85392.0,0.12384]
[1766106841609,0.3608,85404.0,85393.0,0.14827]
[1766106844513,0.3608,85404.0,85394.0,0.1535368]
[1766106845023,0.3608,85404.0,85394.0,0.14182]
[1766106846407,0.00010682,85410.0,85400.0,0.14182]
[1766106846623,0.00010682,85410.0,85406.0,0.3608]
[1766106848118,0.00010682,85410.0,85406.0,0.2808]
[1766106848421,0.00010682,85410.0,85399.0,0.3608]
[1766106849124,0.00010682,85410.0,85399.0,0.50262]
[1766106849826,0.00010682,85410.0,85400.0,0.14182]
[1766106851117,0.14975,85401.0,85386.0,0.50262]
[1766106851315,0.372517,85393.0,85381.0,0.14182]
[1766106851528,0.3608,85393.0,85381.0,0.14182]
[1766106852031,0.2808,85393.0,85385.0,0.14182]
[1766106852336,0.1208,85393.0,85385.0,0.14182]
[1766106852530,0.0408,85393.0,85385.0,0.14182]
[1766106854021,0.00017563,85396.0,85385.0,0.14182]
[1766106857931,0.01189223,85396.0,85385.0,0.14182]
[1766106859735,0.00017563,85396.0,85385.0,0.14182]
[1766106860834,0.00017563,85396.0,85388.0,0.1497]
[1766106862139,0.0117167,85395.0,85388.0,0.1497]
[1766106862342,0.0117171,85392.0,85388.0,0.1497]
[1766106862531,0.0117167,85395.0,85388.0,0.1497]
[1766106863425,0.00017563,85396.0,85388.0,0.1497]
[1766106865930,0.51968829,85400.0,85392.0,0.1497]
[1766106866129,0.325516,85400.0,85392.0,0.1497]
[1766106866729,0.3138,85400.0,85392.0,0.1497]
[1766106868146,0.00017563,85405.0,85392.0,0.1497]
[1766106868337,0.20588829,85402.0,85392.0,0.1497]
[1766106869941,0.21760399,85402.0,85392.0,0.1497]
[1766106870140,0.00017563,85405.0,85392.0,0.35558829]
[1766106870346,0.0117126,85425.0,85410.0,0.1497]
[1766106870533,0.30592,85425.0,85417.0,0.1497]
[1766106870844,0.66104,85427.0,85424.0,0.3608]
[1766106871046,0.011712,85430.0,85424.0,0.3608]
[1766106871438,0.35788,85429.0,85424.0,0.3608]
[1766106872532,0.35778,85429.0,85424.0,0.3608]
[1766106872840,0.00017563,85436.0,85424.0,0.3608]
[1766106872841,0.00017563,85436.0,85425.0,0.1497]
[1766106873043,0.34873107,85436.0,85434.0,0.1497]
[1766106873241,0.64524,85447.0,85434.0,0.1497]
[1766106873447,0.64524,85447.0,85445.0,0.3608]
[1766106875043,0.36037,85452.0,85445.0,0.3608]
[1766106875553,0.00017563,85455.0,85447.0,0.3608]
[1766106875755,0.00017563,85455.0,85454.0,0.3608]
[1766106877832,0.01188403,85455.0,85447.0,0.3608]
[1766106878847,0.00017563,85455.0,85447.0,0.3608]
[1766106885046,3e-08,85455.0,85447.0,0.3608]
[1766106885247,0.54788,85473.0,85458.0,0.011708]
[1766106885453,0.54788,85473.0,85460.0,0.20588829]
[1766106886253,0.559486,85473.0,85460.0,0.20588829]
[1766106886950,0.559486,85473.0,85458.0,0.00017553]
[1766106887151,0.559486,85473.0,85461.0,0.3608]
[1766106889055,0.0117061,85472.0,85461.0,0.3608]
[1766106889939,0.54778,85473.0,85461.0,0.3608]
[1766106890352,0.5594861,85473.0,85461.0,0.3608]
[1766106891249,0.54778,85473.0,85461.0,0.3608]
[1766106894249,0.18708,85473.0,85464.0,0.0117071]
[1766106894452,0.00017553,85475.0,85468.0,0.3608]
[1766106894849,3e-08,85475.0,85472.0,0.0117061]
[1766106895060,0.01404185,85498.0,85481.0,0.0117048]
[1766106895248,0.0117029,85496.0,85491.0,0.3608]
[1766106895653,0.3608,85494.0,85481.0,0.3608]
[1766106895966,0.3725032,85494.0,85481.0,0.3608]
[1766106896858,0.0117034,85492.0,85481.0,0.3608]
[1766106897162,0.0117037,85490.0,85483.0,0.3608]
[1766106897953,0.0117033,85493.0,85483.0,0.3608]
[1766106899250,0.3608,85494.0,85483.0,0.3608]
[1766106901046,0.0117033,85493.0,85483.0,0.3608]
[1766106901455,0.0117033,85493.0,85479.0,0.00017553]
[1766106901456,0.3608,85487.0,85479.0,0.00017553]
[1766106901659,0.3608,85480.0,85479.0,0.00017553]
[1766106902156,0.3608,85487.0,85479.0,0.00017553]
[1766106902157,0.3608,85487.0,85479.0,0.36097553]
[1766106902364,0.3608,85494.0,85480.0,0.011705]
[1766106902659,0.22688,85500.0,85487.0,0.3608]
[1766106902964,0.2385823,85500.0,85487.0,0.3608]
[1766106903147,0.44447059,85500.0,85487.0,0.3608]
[1766106903352,0.0117032,85494.0,85487.0,0.3608]
[1766106904154,0.3608,85489.0,85479.0,0.36097553]
[1766106905364,0.0117039,85488.0,85479.0,0.36097553]
[1766106905666,0.3608,85480.0,85479.0,0.00017553]
[1766106905962,0.3608,85480.0,85479.0,3e-08]
[1766106906162,0.0117068,85468.0,85451.0,0.0117089]
[1766106906357,0.3608,85456.0,85452.0,0.37548]
[1766106906562,0.3608,85456.0,85442.0,0.0117101]
[1766106906864,0.3608,85456.0,85443.0,0.56148]
[1766106907769,0.3608,85447.0,85443.0,0.57319]
[1766106908268,0.3608,85456.0,85446.0,0.0117097]
[1766106908467,0.00017553,85458.0,85455.0,0.3608]
[1766106912471,3e-08,85458.0,85455.0,0.3608]
[1766106925286,3e-08,85458.0,85444.0,0.3608]
[1766106925495,0.3608,85448.0,85441.0,0.00017553]
[1766106926492,0.50556,85448.0,85441.0,0.00017553]
[1766106926987,0.3608,85448.0,85441.0,0.00017553]
[1766106928680,3e-08,85458.0,85445.0,0.3608]
[1766106928887,0.3608,85468.0,85455.0,0.3608]
[1766106929190,0.3608,85474.0,85463.0,0.3608]
[1766106929796,0.3725059,85474.0,85463.0,0.3608]
[1766106930703,0.3608,85474.0,85463.0,0.3608]
[1766106930989,0.00017553,85477.0,85463.0,0.3608]
[1766106931402,0.00017553,85477.0,85464.0,0.0117072]
[1766106931591,0.00017553,85477.0,85463.0,0.6312]
[1766106931592,3e-08,85477.0,85463.0,0.6312]
[1766106931802,3e-08,85477.0,85473.0,0.0117059]
[1766106932198,3e-08,85477.0,85475.0,0.0117056]
[1766106932586,3e-08,85477.0,85473.0,0.0117059]
[1766106933100,3e-08,85477.0,85475.0,0.0117056]
[1766106933401,3e-08,85477.0,85472.0,0.3608]
[1766106934100,3e-08,85477.0,85475.0,0.0117056]
[1766106937002,3e-08,85477.0,85475.0,0.0117057]
[1766106938104,3e-08,85477.0,85473.0,0.3608]
[1766106939705,3e-08,85477.0,85473.0,0.3725059]
[1766106940000,3e-08,85477.0,85475.0,0.0117057]
[1766106940608,0.0117015,85506.0,85474.0,0.40072]
[1766106940788,5e-08,85498.0,85492.0,0.0117032]
[1766106941105,5e-08,85498.0,85489.0,0.3608]
[1766106941106,5e-08,85498.0,85494.0,0.3608]
[1766106942700,5e-08,85498.0,85491.0,0.3608]
[1766106945202,5e-08,85498.0,85494.0,0.011703]
[1766106945508,5e-08,85498.0,85491.0,0.3725035]
[1766106945706,5e-08,85498.0,85491.0,0.3608]
[1766106948405,5e-08,85498.0,85492.0,0.0117034]
[1766106949103,5e-08,85498.0,85491.0,0.3608]
[1766106949606,5e-08,85498.0,85494.0,0.0117031]
[1766106950105,5e-08,85498.0,85491.0,0.3608]
[1766106956898,5e-08,85498.0,85495.0,0.3608]
[1766106960810,0.14819,85495.0,85487.0,0.00017553]
[1766106961109,0.50899,85489.0,85474.0,0.17868]
[1766106961408,0.3725038,85489.0,85474.0,0.1903858]
[1766106961914,0.3608,85489.0,85474.0,0.17868]
[1766106962219,0.36063,85489.0,85484.0,0.0117044]
[1766106962801,5e-08,85498.0,85488.0,0.3608]
[1766106963504,0.0117031,85495.0,85488.0,0.3608]
[1766106965613,0.3608,85489.0,85474.0,0.17868]
[1766106966205,0.3608,85489.0,85477.0,0.0117054]
[1766106967402,0.14819,85488.0,85470.0,0.20549069]
[1766106967707,0.14819,85488.0,85469.0,2.4584]
[1766106967708,0.14819,85481.0,85466.0,0.3608]
[1766106968221,0.14819,85481.0,85467.0,0.0117067]
[1766106968800,0.20549069,85483.0,85466.0,0.3608]
[1766106969009,0.00017553,85486.0,85470.0,0.20549069]
[1766106969207,0.00017553,85486.0,85471.0,0.0117062]
[1766106969413,0.00017553,85486.0,85470.0,0.20549069]
[1766106969602,0.00017553,85486.0,85477.0,0.0117054]
[1766106970004,3e-08,85486.0,85483.0,0.0117046]
[1766106970212,0.28148,85503.0,85485.0,0.3608]
[1766106970417,0.28148,85503.0,85493.0,0.3608]
[1766106970614,0.56629069,85500.0,85485.0,0.3725043]
[1766106971216,0.56640731,85500.0,85485.0,0.3725043]
[1766106972316,0.57810961,85500.0,85485.0,0.3725043]
[1766106973915,0.70473731,85500.0,85485.0,0.3608]
[1766106974114,0.70473731,85500.0,85480.0,0.3608]
[1766106974115,0.13833,85492.0,85480.0,0.3608]
[1766106974318,0.3608,85493.0,85480.0,0.3608]
[1766106974319,0.13833,85489.0,85480.0,0.3608]
[1766106975022,0.3608,85483.0,85471.0,0.3725062]
[1766106975316,0.13833,85489.0,85479.0,0.3608]
[1766106976208,0.1500332,85494.0,85479.0,0.372505]
[1766106976415,0.011703,85495.0,85486.0,0.3608]
[1766106977810,0.3608,85497.0,85472.0,0.3608]
[1766106977811,0.1500342,85486.0,85472.0,0.3608]
[1766106978006,0.3608,85479.0,85472.0,0.3608]
[1766106978915,0.3608,85487.0,85473.0,0.01188153]
[1766106979221,0.20549069,85490.0,85481.0,0.3608]
[1766106979716,0.49913,85494.0,85481.0,0.3608]
[1766106980106,0.0117038,85490.0,85481.0,0.3608]
[1766106980621,0.1500333,85493.0,85481.0,0.3608]
[1766106980921,0.20549069,85491.0,85481.0,0.3608]
[1766106981219,0.1500333,85493.0,85481.0,0.3608]
[1766106982922,0.1500333,85493.0,85482.0,0.3608]
[1766106984230,0.13833,85493.0,85482.0,0.3608]
[1766106985329,0.3725032,85494.0,85482.0,0.3608]
[1766106985330,0.3608,85494.0,85482.0,0.3608]
[1766106985916,0.3725032,85494.0,85482.0,0.3608]
[1766106987513,5e-08,85498.0,85490.0,0.3608]
[1766106991630,0.3608,85495.0,85482.0,0.3608]
[1766106994025,0.3608,85495.0,85484.0,0.0117044]
[1766106994232,0.3608,85495.0,85482.0,0.3608]
[1766106995230,0.3608,85495.0,85486.0,0.0117041]
[1766106995433,5e-08,85498.0,85482.0,0.3608]
[1766106995434,5e-08,85498.0,85493.0,0.3608]
[1766106999934,0.011701,85510.0,85496.0,0.0117028]
[1766107000134,0.011701,85510.0,85500.0,0.20549069]
[1766107000334,0.011701,85510.0,85496.0,0.0117028]
[1766107001744,0.49913,85516.0,85500.0,0.20549069]
[1766107001944,0.0117008,85511.0,85500.0,0.20549069]
[1766107002344,0.3608,85516.0,85500.0,0.20549069]
[1766107002531,0.3470207,85512.0,85500.0,0.20549069]
[1766107003442,0.00337686,85527.0,85511.0,0.3608]
[1766107003642,0.00337686,85527.0,85521.0,0.3608]
[1766107003850,0.35587889,85530.0,85521.0,0.7216]
[1766107004045,0.35587889,85530.0,85521.0,0.3608]
[1766107004442,0.0116988,85526.0,85521.0,0.3608]
[1766107004648,0.3608,85522.0,85515.0,0.00017542]
[1766107009255,0.3608,85522.0,85518.0,0.0116997]
[1766107009470,0.3608,85534.0,85521.0,0.3608]
[1766107009948,0.3608,85534.0,85525.0,0.0116988]
[1766107010156,0.00233816,85538.0,85533.0,0.3608]
[1766107011250,0.00233816,85538.0,85535.0,0.3608]
[1766107012449,0.0116972,85537.0,85525.0,0.24272]
[1766107012650,0.15272536,85538.0,85525.0,0.24272]
[1766107014266,0.00233816,85538.0,85525.0,0.24272]
[1766107014570,0.00233816,85538.0,85531.0,0.3608]
[1766107020371,6e-08,85538.0,85531.0,0.372498]
[1766107020570,0.248,85546.0,85535.0,0.0116974]
[1766107020772,0.13869,85566.0,85545.0,0.3608]
[1766107020967,0.5111827,85571.0,85555.0,0.3608]
[1766107021167,0.13869,85576.0,85570.0,0.3608]
[1766107021372,0.37301706,85578.0,85570.0,0.3608]
[1766107022172,0.0116918,85577.0,85570.0,0.3608]
[1766107022562,0.51170706,85578.0,85564.0,0.0001753]
[1766107022776,0.3608,85565.0,85546.0,0.372496]
[1766107022972,0.3608,85565.0,85550.0,0.20549069]
[1766107023574,0.3608,85565.0,85551.0,0.0116952]
[1766107023780,0.3608,85565.0,85552.0,0.0001753]
[1766107023964,0.3608,85565.0,85554.0,0.0116949]
[1766107024362,0.3608,85565.0,85556.0,0.2166]
[1766107026779,0.3608,85557.0,85552.0,0.50773133]
[1766107026974,0.1363,85554.0,85533.0,2.45704]
[1766107027172,0.3608,85550.0,85539.0,0.65984]
[1766107027572,0.0116956,85549.0,85539.0,0.65984]
[1766107028079,0.3608,85550.0,85539.0,0.65984]
[1766107029283,0.3608,85550.0,85539.0,0.6715369]
[1766107029484,0.3608,85550.0,85539.0,0.65984]
[1766107029685,0.0001753,85553.0,85546.0,0.3608]
[1766107033080,0.1427053,85553.0,85546.0,0.2808]
[1766107033482,0.0001753,85553.0,85546.0,0.2808]
[1766107039277,0.14253,85569.0,85546.0,0.2808]
[1766107039478,0.28097,85562.0,85555.0,0.3608]
[1766107040682,0.28097,85562.0,85554.0,0.3608]
[1766107040897,0.28097,85562.0,85546.0,0.2924959]
[1766107041391,0.4235,85562.0,85546.0,0.2808]
[1766107041597,0.14253,85561.0,85546.0,0.2808]
[1766107041787,0.34774571,85560.0,85546.0,0.2808]
[1766107041986,0.0116948,85555.0,85546.0,0.2808]
[1766107042488,0.0116945,85558.0,85546.0,0.2808]
[1766107044084,0.34774571,85560.0,85546.0,0.2808]
[1766107044286,0.14253,85560.0,85546.0,0.2808]
[1766107044494,0.28097,85562.0,85546.0,0.2808]
[1766107044689,0.28097,85562.0,85553.0,0.3608]
[1766107044889,0.28097,85562.0,85546.0,0.2808]
[1766107044890,0.2926638,85562.0,85546.0,0.2808]
[1766107045302,0.0116941,85560.0,85546.0,0.2808]
[1766107045790,0.28097,85562.0,85546.0,0.292496]
[1766107047093,0.28097,85562.0,85546.0,0.2808]
[1766107048402,0.0116943,85559.0,85546.0,0.2808]
[1766107051298,0.2926639,85562.0,85546.0,0.2808]
[1766107051600,0.14253,85559.0,85546.0,0.2808]
[1766107051807,0.372495,85554.0,85546.0,0.2808]
[1766107052193,0.0116945,85557.0,85546.0,0.2808]
[1766107053911,0.21690991,85560.0,85546.0,0.2808]
[1766107054096,0.14253,85553.0,85535.0,0.3609753]
[1766107054298,0.3608,85536.0,85522.0,2.45672]
[1766107054508,0.3608,85527.0,85523.0,0.65976]
[1766107054703,0.3608,85527.0,85520.0,0.6714595]
[1766107055005,0.0116992,85523.0,85510.0,0.65976]
[1766107055199,0.3608,85515.0,85510.0,0.65976]
[1766107056907,0.3608,85514.0,85504.0,0.13849541]
[1766107057107,0.2808,85514.0,85507.0,0.13832]
[1766107057407,0.00017541,85521.0,85512.0,0.36355]
[1766107058206,0.00017541,85521.0,85513.0,0.00275]
[1766107058403,0.10564,85528.0,85513.0,0.00275]
[1766107059009,0.10564,85528.0,85520.0,0.3608]
[1766107059205,0.35822,85529.0,85521.0,0.00286]
[1766107059408,0.14253,85541.0,85527.0,0.3608]
[1766107059409,0.0001748,85534.0,85527.0,0.3608]
[1766107059606,0.0001748,85534.0,85527.0,0.36108]
[1766107059810,4.8e-06,85534.0,85527.0,0.36108]
[1766107060609,4.8e-06,85534.0,85527.0,0.00028]
[1766107060809,4.8e-06,85534.0,85527.0,0.36108]
[1766107064615,4.8e-06,85534.0,85527.0,0.3608]
[1766107064813,4.8e-06,85534.0,85528.0,0.0116985]
[1766107065602,4.8e-06,85534.0,85531.0,0.011698]
[1766107066617,0.19104,85545.0,85536.0,0.0116973]
[1766107066816,0.3608,85556.0,85537.0,0.3608]
[1766107066817,0.0116955,85550.0,85537.0,0.3608]
[1766107067113,0.0116962,85545.0,85537.0,0.3608]
[1766107068506,0.13986,85547.0,85537.0,0.3608]
[1766107068704,0.1733356,85549.0,85537.0,0.3608]
[1766107069616,0.16164,85549.0,85537.0,0.3608]
[1766107070513,0.0116957,85548.0,85537.0,0.3608]
[1766107070908,0.011696,85546.0,85537.0,0.3608]
[1766107072215,0.16164,85549.0,85537.0,0.3608]
[1766107072419,0.0116957,85548.0,85537.0,0.3608]
[1766107073118,0.52244,85549.0,85537.0,0.3608]
[1766107073318,0.3608,85549.0,85540.0,0.0116968]
[1766107073508,0.3608,85549.0,85537.0,0.3608]
[1766107073509,0.3608,85556.0,85548.0,0.3608]
[1766107073914,0.3608,85556.0,85543.0,0.00017541]
[1766107074212,0.0116958,85548.0,85543.0,0.00017541]
[1766107074805,0.0116954,85551.0,85543.0,0.00017541]
[1766107075007,0.0116962,85545.0,85543.0,1e-08]
[1766107075219,0.3608,85546.0,85543.0,1e-08]
[1766107076411,0.1515561,85545.0,85543.0,1e-08]
[1766107076705,0.372496,85546.0,85543.0,1e-08]
[1766107077521,0.3608,85546.0,85543.0,1e-08]
[1766107080223,0.0116961,85545.0,85543.0,1e-08]
[1766107080424,0.3608,85546.0,85543.0,1e-08]
[1766107083037,0.0001754,85553.0,85543.0,1e-08]
[1766107083038,0.13986,85552.0,85543.0,1e-08]
[1766107084044,0.0116966,85542.0,85537.0,0.3608]
[1766107084239,0.13986,85545.0,85537.0,0.3608]
[1766107084744,0.0116958,85548.0,85537.0,0.3608]
[1766107084942,0.011696,85546.0,85537.0,0.3608]
[1766107085942,0.13986,85548.0,85537.0,0.3608]
[1766107086744,0.25524,85549.0,85537.0,0.3608]
[1766107086948,0.25524,85549.0,85544.0,0.3608]
[1766107090754,0.0001754,85553.0,85544.0,0.3608]
[1766107091541,0.0001754,85553.0,85521.0,0.0116993]
[1766107091542,0.13986,85535.0,85521.0,0.0116993]
[1766107091745,0.3608,85548.0,85505.0,0.3725015]
[1766107091746,0.36063,85538.0,85528.0,0.0116984]
[1766107091945,0.0118705,85553.0,85528.0,0.0116984]
[1766107091946,0.0116943,85559.0,85543.0,0.0116964]
[1766107092251,0.2777605,85560.0,85553.0,0.3608]
[1766107092548,0.07256,85560.0,85553.0,0.3608]
[1766107092847,0.0116946,85557.0,85553.0,0.3608]
[1766107093746,0.3608,85556.0,85548.0,0.00017541]
[1766107094854,0.0116948,85555.0,85548.0,0.00017541]
[1766107096139,0.3724947,85556.0,85548.0,0.00017541]
[1766107097046,0.011695,85554.0,85548.0,0.00017541]
[1766107098755,0.50564,85556.0,85548.0,0.00017541]
[1766107099248,0.0116948,85555.0,85548.0,0.00017541]
[1766107100055,0.50564,85556.0,85548.0,0.00017541]
[1766107100239,0.1565348,85555.0,85548.0,0.00017541]
[1766107100445,0.14484,85555.0,85548.0,1e-08]
[1766107100645,0.14484,85549.0,85548.0,1e-08]
[1766107100842,0.011697,85539.0,85523.0,0.3608]
[1766107101040,0.14484,85532.0,85523.0,0.3608]
[1766107101254,0.3608,85528.0,85518.0,0.0116997]
[1766107102450,0.3608,85528.0,85520.0,0.0116994]
[1766107103957,0.3608,85528.0,85522.0,0.0116992]
[1766107104662,0.00017541,85532.0,85527.0,0.3608]
[1766107108849,0.00017541,85532.0,85525.0,0.0116988]
[1766107110457,0.00017541,85532.0,85522.0,0.0116992]
[1766107110845,0.00017541,85532.0,85524.0,0.011699]
[1766107113968,0.00017541,85532.0,85521.0,0.3724993]
[1766107114258,0.00017541,85532.0,85521.0,0.3608]
[1766107115059,0.00017541,85532.0,85522.0,0.0116993]
[1766107115660,0.00017541,85532.0,85524.0,0.011699]
[1766107117559,0.00017541,85532.0,85521.0,0.3724993]
[1766107117761,0.00017541,85532.0,85523.0,0.0116991]
[1766107118659,0.00017541,85532.0,85521.0,0.3608]
[1766107118848,0.00017541,85532.0,85524.0,0.011699]
[1766107121050,0.00017541,85532.0,85521.0,0.3608]
[1766107121246,0.00017541,85532.0,85526.0,0.0116986]
[1766107121452,0.19956,85547.0,85531.0,0.3608]
[1766107121763,0.19956,85547.0,85539.0,0.3608]
[1766107124162,0.00017541,85552.0,85546.0,0.3608]
[1766107124476,0.00017541,85552.0,85547.0,0.0116959]
[1766107124770,0.40516,85561.0,85547.0,0.0116959]
[1766107125266,0.40516,85561.0,85546.0,0.3608]
[1766107125267,0.40516,85561.0,85550.0,0.2052005]
[1766107125779,0.00017541,85564.0,85554.0,0.3608]
[1766107125963,0.14698,85576.0,85563.0,0.3608]
[1766107126265,0.0116921,85575.0,85563.0,0.3608]
[1766107126560,0.14698,85575.0,85563.0,0.3608]
[1766107126764,0.14698,85568.0,85554.0,0.3608]
[1766107127759,0.3608,85560.0,85552.0,0.00017531]
[1766107127961,0.14698,85559.0,85552.0,0.00017531]
[1766107128164,0.3608,85560.0,85552.0,0.00017531]
[1766107128863,0.2808,85560.0,85553.0,0.13287]
[1766107129666,0.3608,85566.0,85558.0,0.3608]
[1766107129876,0.42446,85577.0,85558.0,0.3608]
[1766107130258,0.0116919,85576.0,85561.0,0.0116939]
[1766107131072,0.42446,85577.0,85565.0,0.3608]
[1766107131364,0.14698,85576.0,85565.0,0.3608]
[1766107131569,0.14698,85576.0,85560.0,0.2052005]
[1766107132672,0.14698,85576.0,85558.0,0.3724943]
[1766107132964,0.1586721,85575.0,85560.0,0.2052005]
[1766107133175,0.14698,85575.0,85560.0,0.2052005]
[1766107133465,0.3521805,85570.0,85558.0,0.3608]
[1766107133675,0.011693,85568.0,85558.0,0.3608]
[1766107133866,0.3521805,85570.0,85558.0,0.3608]
[1766107136471,0.0116932,85567.0,85558.0,0.3608]
[1766107137173,0.2052005,85570.0,85558.0,0.3608]
[1766107137174,0.14698,85565.0,85558.0,0.3608]
[1766107137386,0.14698,85562.0,85552.0,0.29025531]
[1766107137677,0.1586742,85559.0,85547.0,0.3608]
[1766107138172,0.14698,85559.0,85547.0,0.3608]
[1766107139472,0.14698,85559.0,85547.0,0.36107]
[1766107141966,0.00017496,85562.0,85548.0,0.00012]
[1766107142374,0.14459496,85562.0,85548.0,0.00012]
[1766107143979,0.14459496,85562.0,85548.0,0.0118157]
[1766107144380,0.14459496,85562.0,85549.0,0.00022]
[1766107144683,0.00017496,85562.0,85551.0,0.00022]
[1766107145570,4.96e-06,85562.0,85551.0,0.00022]
[1766107145772,0.28080496,85563.0,85557.0,0.0003]
[1766107145971,0.28058496,85563.0,85557.0,0.0003]
[1766107146579,0.2476,85569.0,85557.0,0.0003]
[1766107146782,0.2476,85569.0,85558.0,0.0117743]
[1766107147082,0.3608,85571.0,85563.0,8e-05]
[1766107149178,0.3608,85571.0,85562.0,0.3724938]
[1766107149576,0.3608,85571.0,85562.0,0.3608]
[1766107149786,0.3608,85563.0,85554.0,0.6966]
[1766107149975,0.3608,85555.0,85549.0,0.3458]
[1766107150281,0.3608,85555.0,85547.0,0.58228]
[1766107150679,0.3608,85555.0,85543.0,0.0116963]
[1766107150879,0.50522,85555.0,85542.0,1.0323365]
[1766107151177,0.3608,85547.0,85542.0,0.65984]
[1766107151379,0.3608,85547.0,85539.0,0.65988]
[1766107154280,0.3608,85547.0,85539.0,0.6715769]
[1766107154583,0.36006,85547.0,85540.0,0.00054]
[1766107154984,0.00017531,85552.0,85546.0,0.3608]
[1766107156587,0.00017531,85552.0,85546.0,0.3724959]